fUST/lending_fUST_20240303
["ID","MTS","AMOUNT","RATE_DAILY","PERIOD"]
[316360234,1709451039215,-23702.12455951,0.00024,5]
[316360760,1709451044258,-2015.0,0.00024,5]
[316360762,1709451044270,-1894.49568397,0.00024,5]
[316360765,1709451044283,-320.49212931,0.00024,5]
[316360767,1709451044296,-4959.97688879,0.00024,5]
[316360769,1709451044311,-5515.48311121,0.00024,5]
[316360771,1709451044323,-764.76670726,0.00024,5]
[316360791,1709451044445,-316.12146668,0.00024,5]
[316360795,1709451044473,-881.0,0.00024,5]
[316360797,1709451044487,-394.27162288,0.00024,5]
[316360799,1709451044499,-5496.22,0.00024,5]
[316360801,1709451044512,-3951.65903696,0.00024,5]
[316360804,1709451044524,-286.20600024,0.00024,5]
[316361158,1709451048176,-735.50167622,0.00023999,2]
[316361160,1709451048185,-310.33132814,0.00023999,2]
[316361162,1709451048195,-29654.16699564,0.00024,5]
[316361164,1709451048207,-6060.53121084,0.00024,5]
[316361166,1709451048219,-17907.14145121,0.00024,5]
[316363164,1709451973562,150.0,0.00024,30]
[316363233,1709452233675,-169.20709665,0.00020446,2]
[316363235,1709452233685,-2898.84290335,0.00020546,2]
[316363241,1709452233734,-520.14262944,0.00020546,2]
[316363277,1709452237762,-1123.52549523,0.00020546,2]
[316363278,1709452237775,-470.94318688,0.00020546,2]
[316363279,1709452237786,-18565.99677838,0.00020546,2]
[316363280,1709452237799,-1694.53380643,0.00020546,2]
[316363281,1709452237846,-3472.04411829,0.00020546,2]
[316363282,1709452237859,-880.60745171,0.00020546,2]
[316363283,1709452237870,-28408.03224464,0.00020546,2]
[316363284,1709452237880,-2595.08936365,0.00020546,2]
[316363285,1709452237889,-500.0,0.00020547,2]
[316363286,1709452237898,-500.0,0.00020547,2]
[316363287,1709452237908,-500.0,0.00020547,2]
[316363288,1709452237917,-468.98948921,0.00020547,2]
[316363289,1709452237927,-500.0,0.00020547,2]
[316363290,1709452237936,-500.0,0.00020547,2]
[316363291,1709452237945,-501.78089379,0.00020547,2]
[316363292,1709452237954,-500.0,0.00020547,2]
[316363293,1709452237963,-500.0,0.00020547,2]
[316363294,1709452237973,-501.73342296,0.00020547,2]
[316363295,1709452237982,-500.0,0.00020547,2]
[316363296,1709452237991,-500.0,0.00020547,2]
[316363297,1709452238000,-237.76552889,0.00020547,2]
[316363298,1709452238009,-500.94395005,0.00020547,2]
[316363299,1709452238018,-500.0,0.00020547,2]
[316363300,1709452238027,-500.0,0.00020547,2]
[316363301,1709452238036,-333.01729729,0.00020547,2]
[316363302,1709452238046,-500.0,0.00020547,2]
[316363303,1709452238057,-508.86326725,0.00020547,2]
[316363304,1709452238065,-500.0,0.00020547,2]
[316363305,1709452238077,-406.46442018,0.00020547,2]
[316363306,1709452238086,-500.0,0.00020547,2]
[316363307,1709452238096,-199.1282811,0.00020547,2]
[316363308,1709452238106,-500.72232009,0.00020547,2]
[316363309,1709452238116,-260.32695663,0.00020547,2]
[316363310,1709452238125,-634.11959593,0.00020547,2]
[316363311,1709452238133,-500.0,0.00020547,2]
[316363312,1709452238142,-252.02518244,0.00020547,2]
[316363313,1709452238151,-500.0,0.00020547,2]
[316363314,1709452238161,-500.0,0.00020547,2]
[316363315,1709452238170,-500.0,0.00020547,2]
[316363316,1709452238182,-500.0,0.00020547,2]
[316363317,1709452238192,-500.0,0.00020547,2]
[316363318,1709452238201,-500.0,0.00020547,2]
[316363319,1709452238211,-500.0,0.00020547,2]
[316363320,1709452238221,-500.0,0.00020547,2]
[316363321,1709452238232,-500.0,0.00020547,2]
[316363322,1709452238242,-500.0,0.00020547,2]
[316363323,1709452238251,-500.0,0.00020547,2]
[316363324,1709452238261,-500.0,0.00020547,2]
[316363325,1709452238271,-276.3176079,0.00020547,2]
[316363326,1709452238280,-500.0,0.00020547,2]
[316363327,1709452238289,-500.0,0.00020547,2]
[316363328,1709452238298,-150.0,0.000219,2]
[316363329,1709452238307,-24900.0,0.00021922,2]
[316363330,1709452238319,-725.01517922,0.00022552,2]
[316363331,1709452238328,-385.86,0.00022647,3]
[316363332,1709452238337,-500.0,0.00022657,2]
[316363333,1709452238346,-331.66,0.00022657,2]
[316363334,1709452238356,-500.0,0.00022657,2]
[316363335,1709452238365,-500.0,0.00022657,2]
[316363337,1709452238374,-500.0,0.00022657,2]
[316363338,1709452238384,-500.0,0.00022657,2]
[316363340,1709452238393,-500.0,0.00022657,2]
[316363342,1709452238403,-500.0,0.00022657,2]
[316363343,1709452238413,-500.0,0.00022657,2]
[316363344,1709452238422,-162.218823,0.00022721,2]
[316363345,1709452238432,-1672.26848757,0.00022887,2]
[316363346,1709452238441,-200.61060729,0.00023,2]
[316363347,1709452238451,-200.7008514,0.00023699,2]
[316363349,1709452238460,-306.0,0.00023699,2]
[316363351,1709452238469,-250.9434928,0.000239,2]
[316363352,1709452238478,-5000.0,0.00023902,5]
[316363354,1709452238489,-5000.0,0.00023902,5]
[316363356,1709452238498,-2432.66718521,0.00023998,2]
[316363357,1709452238507,-699.18710137,0.00023999,2]
[316363358,1709452238516,-215.97576427,0.00023999,2]
[316363359,1709452238525,-984.21790354,0.00023999,2]
[316363360,1709452238535,-738.39267626,0.00023999,2]
[316363362,1709452238544,-500.0,0.00023999,2]
[316363364,1709452238553,-500.0,0.00023999,2]
[316363365,1709452238562,-500.0,0.00023999,2]
[316363366,1709452238573,-500.0,0.00023999,2]
[316363367,1709452238582,-277.42,0.00023999,2]
[316363368,1709452238591,-303.32507201,0.00023999,2]
[316363369,1709452238600,-329.997686,0.00023999,2]
[316363370,1709452238609,-576.34537584,0.00023999,2]
[316363371,1709452238729,-664666.64409592,0.00024,5]
[316363387,1709452240689,-2979.83120898,0.00024,5]
[316363418,1709452242877,-894.0,0.00024,5]
[316363420,1709452242889,-881.5,0.00024,5]
[316363423,1709452242901,-1256.0,0.00024,5]
[316363427,1709452242939,-14550.84461984,0.00024,5]
[316363430,1709452242953,-47547.37472302,0.00024,5]
[316363685,1709452245938,-155.0,0.00023,2]
[316363686,1709452245947,-358.30229121,0.00024,5]
[316363688,1709452245961,-327.70101,0.00024,5]
[316363691,1709452245973,-720.75067691,0.00024,5]
[316363693,1709452245989,-2605.40883946,0.00024,5]
[316363695,1709452246000,-118904.14149121,0.00024,5]
[316365685,1709452425437,-8916.42478816,0.00019,2]
[316365686,1709452437614,4839.72032461,0.00019,2]
[316365704,1709452890257,1497.0,0.0003,120]
[316365716,1709453153740,161.5545736,0.000189,2]
[316365776,1709453432052,-186.02951011,0.00019999,2]
[316365778,1709453432063,-251.08139982,0.0002,2]
[316365780,1709453432074,-120.77309356,0.00020406,2]
[316366144,1709453439826,-2474.31627009,0.00020406,2]
[316366146,1709453439835,-1140.2596044,0.00020407,2]
[316366148,1709453439845,-12479.52512551,0.00020517,2]
[316366151,1709453439857,-1696.91,0.00020517,2]
[316366153,1709453439869,-4112.26929505,0.00020517,2]
[316366160,1709453439932,-892.67440871,0.00020517,2]
[316366492,1709453442943,-10577.90591113,0.00020517,2]
[316366495,1709453442967,-6144.8559952,0.00020517,2]
[316366508,1709453443086,-11417.37417158,0.00020517,2]
[316367673,1709453455124,150.0,0.000189,2]
[316370255,1709453756737,150.0,0.000189,2]
[316370271,1709454243848,3976.87552547,0.00019,2]
[316370272,1709454243878,3133.05247453,0.00019,2]
[316373167,1709454522472,4977.94752547,0.0001869,2]
[316373171,1709454522607,19922.05247453,0.0001869,2]
[316373360,1709454530147,6628.2786243,0.0001869,2]
[316374864,1709454641105,-372.36903654,0.00019005,2]
[316374865,1709454641116,-428.72125377,0.00019006,2]
[316374866,1709454641126,-82.18553799,0.00019007,2]
[316374867,1709454641139,-72.81446201,0.00019007,2]
[316374868,1709454641148,-290.08142,0.00019017,2]
[316374869,1709454641159,-192.65411799,0.00019447,2]
[316374870,1709454641171,-412.25694381,0.00019447,2]
[316374871,1709454641180,-175.57805619,0.00020324,2]
[316374872,1709454641192,-540.45669069,0.00020324,2]
[316374873,1709454641208,-300.1689575,0.00020324,2]
[316374874,1709454641220,-361.142272,0.00020324,2]
[316374875,1709454641232,-267.8576,0.00020324,2]
[316374876,1709454641244,-271.08,0.00020324,2]
[316374877,1709454641256,-291.89087392,0.00020324,2]
[316374878,1709454641269,-18033.84509652,0.00020324,2]
[316374879,1709454641280,-18453.0,0.00020324,2]
[316374889,1709454643200,-19339.64906753,0.00020324,2]
[316374890,1709454643211,-500.0,0.00020547,2]
[316374891,1709454643223,-500.0,0.00020547,2]
[316374892,1709454643236,-569.99,0.00020547,2]
[316374893,1709454643246,-500.0,0.00020547,2]
[316374894,1709454643256,-500.0,0.00020547,2]
[316374895,1709454643267,-500.0,0.00020547,2]
[316374896,1709454643280,-500.0,0.00020547,2]
[316374897,1709454643290,-500.0,0.00020547,2]
[316374902,1709454643407,-500.0,0.00021494,2]
[316374903,1709454643416,-330.46,0.00021495,2]
[316374904,1709454643426,-265.65203957,0.00021814,2]
[316374905,1709454643436,-500.0,0.00021814,2]
[316374906,1709454643446,-500.0,0.00021814,2]
[316374907,1709454643455,-500.0,0.00021814,2]
[316374908,1709454643464,-1703.76,0.00021814,2]
[316374909,1709454643474,-500.0,0.00021814,2]
[316374910,1709454643483,-217.50455377,0.00022552,2]
[316374911,1709454643492,-465.02633222,0.00022552,2]
[316374912,1709454643502,-159.21845801,0.00022552,2]
[316374913,1709454643511,-1000.0,0.00022552,5]
[316374914,1709454643522,-355.92676384,0.00022552,2]
[316374915,1709454643531,-322.22884247,0.00022552,2]
[316374916,1709454643541,-6368.35505649,0.00022896,3]
[316374917,1709454643550,-239.01,0.00022897,2]
[316374918,1709454643559,-239.01,0.00022897,2]
[316374919,1709454643569,-239.01,0.00022897,2]
[316374920,1709454643578,-239.01,0.00022897,2]
[316374921,1709454643587,-239.01,0.00022897,2]
[316374922,1709454643597,-239.01,0.00022897,2]
[316374923,1709454643607,-239.01,0.00022897,2]
[316374924,1709454643617,-239.03,0.00022897,2]
[316374925,1709454643626,-254.56232988,0.00022898,2]
[316374926,1709454643636,-37735.46152089,0.00022898,5]
[316374927,1709454643651,-890.000003,0.00022898,5]
[316374933,1709454646335,-1667.79,0.00021494,2]
[316374934,1709454646345,-1667.79,0.00021495,2]
[316374935,1709454646354,-1667.79,0.00022897,2]
[316374936,1709454646363,-1667.79,0.00022897,2]
[316374937,1709454646372,-1667.79,0.00022897,2]
[316374939,1709454646382,-11374.53847611,0.00022898,5]
[316374941,1709454646392,-61261.35618139,0.00022898,5]
[316374942,1709454646401,-28718.07634976,0.00022898,5]
[316374943,1709454646411,-5000.0,0.00022898,5]
[316374944,1709454646421,-1864.7375679,0.00022903,2]
[316374945,1709454646430,-2947.24657255,0.00022904,3]
[316374946,1709454646440,-155.0,0.00023,2]
[316374947,1709454646450,-4202.28243079,0.00023898,4]
[316375872,1709455833664,-248.24602436,0.0001959,2]
[316375873,1709455833673,-428.72125377,0.00019591,2]
[316375874,1709455833683,-155.00155002,0.00019592,2]
[316375875,1709455833692,-1604.8167343,0.00019593,2]
[316375876,1709455833702,-2595.08936365,0.00019594,2]
[316375877,1709455833712,-58034.66861435,0.00019595,2]
[316375878,1709455833721,-24900.0,0.00019596,2]
[316375879,1709455833731,-500.0,0.00020547,2]
[316375880,1709455833741,-500.0,0.00020547,2]
[316375881,1709455833750,-500.0,0.00020547,2]
[316375882,1709455833768,-500.0,0.00020547,2]
[316375883,1709455833783,-500.0,0.00020547,2]
[316375884,1709455833793,-484.12148916,0.00020547,2]
[316375885,1709455833802,-500.0,0.00020547,2]
[316375886,1709455833812,-497.1515,0.00020547,2]
[316375887,1709455833822,-500.0,0.00020718,2]
[316375888,1709455833832,-500.0,0.00020718,2]
[316375889,1709455833842,-500.0,0.0002072,2]
[316375890,1709455833851,-20284.53367398,0.00022906,5]
[316375891,1709455833861,-830.04852154,0.00022908,5]
[316375892,1709455833871,-5000.0,0.00022908,5]
[316375893,1709455833881,-5000.0,0.00022914,5]
[316375894,1709455833890,-155.0,0.00023,2]
[316375895,1709455833900,-39056.60709823,0.00023,2]
[316375945,1709455838377,-1854.94443067,0.00023,2]
[316376002,1709455841322,-311.20545213,0.00023,2]
[316376004,1709455841334,-516.850155,0.00023,2]
[316376006,1709455841345,-2522.40981283,0.00023,2]
[316376064,1709455843480,-4350.14533836,0.00023,2]
[316376065,1709455843550,-18459.33916206,0.00023,2]
[316376190,1709455846455,-166.14,0.00020718,2]
[316376192,1709455846464,-11176.48474913,0.00023,2]
[316377417,1709456011834,5000.0,0.0003,120]
[316378150,1709457041957,-155.00155002,0.00018999,2]
[316378151,1709457041967,-1604.8167343,0.00018999,2]
[316378152,1709457041977,-2595.08936365,0.00018999,2]
[316378154,1709457041987,-1851.49235203,0.00018999,2]
[316378156,1709457042047,-378.79359255,0.00018999,2]
[316378157,1709457042059,-261.546,0.00018999,2]
[316378169,1709457043600,-55542.83666977,0.00018999,2]
[316378170,1709457043609,-59289.32192862,0.00019,2]
[316378171,1709457043621,-500.0,0.00020547,2]
[316378172,1709457043630,-502.47409784,0.00020547,2]
[316378173,1709457043639,-366.77107219,0.00020547,2]
[316378174,1709457043648,-482.59414822,0.00020547,2]
[316378175,1709457043658,-415.42556595,0.00020547,2]
[316378176,1709457043667,-501.86173744,0.00020547,2]
[316378177,1709457043676,-504.12492288,0.00020547,2]
[316378178,1709457043685,-500.0,0.00020547,2]
[316378179,1709457043694,-500.0,0.00020547,2]
[316378180,1709457043703,-271.2983254,0.00020547,2]
[316378181,1709457043712,-502.01297641,0.00020547,2]
[316378182,1709457043721,-501.91608756,0.00020547,2]
[316378183,1709457043731,-500.0,0.00020547,2]
[316378184,1709457043740,-501.81623265,0.00020547,2]
[316378185,1709457043757,-500.0,0.00020547,2]
[316378187,1709457043771,-500.0,0.00020547,2]
[316378189,1709457043781,-500.0,0.00020547,2]
[316378191,1709457043791,-500.0,0.00020547,2]
[316378193,1709457043801,-500.31001141,0.00020547,2]
[316378195,1709457043813,-500.0,0.00020547,2]
[316378197,1709457043822,-500.0,0.00020547,2]
[316378199,1709457043831,-500.0,0.00020547,2]
[316378201,1709457043841,-501.32333624,0.00020547,2]
[316378202,1709457043851,-602.40070821,0.00020547,2]
[316378204,1709457043860,-500.0,0.00020547,2]
[316378206,1709457043870,-1320.33,0.00020547,2]
[316378208,1709457043879,-500.0,0.00020547,2]
[316378210,1709457043888,-500.0,0.00020547,2]
[316378212,1709457043898,-500.95046408,0.00020547,2]
[316378214,1709457043908,-593.79364466,0.00020547,2]
[316378216,1709457043917,-273.75324945,0.00020547,2]
[316378218,1709457043927,-500.0,0.00020547,2]
[316378220,1709457043936,-472.28641796,0.00020547,2]
[316378222,1709457043946,-400.0,0.00020547,2]
[316378224,1709457043956,-500.0,0.00020717,2]
[316378226,1709457043966,-500.0,0.00020717,2]
[316378228,1709457043975,-500.0,0.00020717,2]
[316378230,1709457043985,-244.61820486,0.00020717,2]
[316378232,1709457043994,-500.0,0.00020717,2]
[316378234,1709457044004,-500.0,0.00020717,2]
[316378236,1709457044013,-500.0,0.00020718,2]
[316378238,1709457044023,-501.7636691,0.00020718,2]
[316378240,1709457044032,-500.0,0.00020718,2]
[316378241,1709457044041,-500.0,0.00020718,2]
[316378242,1709457044050,-503.30232757,0.00020718,2]
[316378243,1709457044061,-500.0,0.00020719,2]
[316378244,1709457044070,-636.90177123,0.00020719,2]
[316378246,1709457044080,-504.01915381,0.00020719,2]
[316378248,1709457044089,-504.27959978,0.00020719,2]
[316378250,1709457044099,-500.0,0.00020719,2]
[316378252,1709457044109,-500.0,0.0002072,2]
[316378254,1709457044118,-11112.6689679,0.00021006,2]
[316378256,1709457044127,-361.35672504,0.00022562,2]
[316378258,1709457044136,-355.92676384,0.00022576,2]
[316378260,1709457044146,-1320.33,0.00022811,2]
[316378262,1709457044155,-4152.871367,0.00022812,2]
[316378264,1709457044164,-206.87168697,0.00022905,2]
[316378266,1709457044173,-7017.04254306,0.0002291,5]
[316378268,1709457044183,-466.18439197,0.00022911,2]
[316378270,1709457044192,-230.82134998,0.00022911,3]
[316378272,1709457044201,-574.87,0.00022998,2]
[316378274,1709457044212,-500.0,0.00022998,2]
[316378276,1709457044221,-500.0,0.00022998,2]
[316378278,1709457044230,-348.09,0.00022998,2]
[316378280,1709457044239,-1320.33,0.00022998,2]
[316378282,1709457044248,-5746.55439392,0.00023,2]
[316378284,1709457044257,-155.0,0.00023,2]
[316378286,1709457044267,-4152.871367,0.00023097,2]
[316378288,1709457044276,-1320.33,0.00023381,2]
[316378290,1709457044285,-4152.871367,0.00023382,2]
[316378292,1709457044294,-1114.04281863,0.00023667,2]
[316378792,1709457753206,24900.0,0.00018685,2]
[316378803,1709457802339,-900000.0,0.00024525,60]
[316378804,1709457806829,-900000.0,0.00024525,60]
[316378806,1709457830979,-150.5,0.00027661,35]
[316378807,1709457831004,-173.608092,0.00027671,35]
[316378808,1709457831028,-173.608092,0.00027671,52]
[316378809,1709457831052,-173.608092,0.00027671,69]
[316378810,1709457831076,-173.608092,0.00027671,86]
[316378811,1709457831099,-173.608092,0.00027671,103]
[316378812,1709457831124,-173.608092,0.00027671,119]
[316378813,1709457831148,-159.5,0.0002768,35]
[316378814,1709457831171,-152.43,0.0002769,35]
[316378815,1709457831199,-404.018,0.000299,60]
[316378816,1709457831223,-630.24301667,0.000299,90]
[316378828,1709457963872,251.103357,0.00018593,2]
[316378832,1709458005111,2106.6833838,0.00018717,2]
[316378839,1709458084861,250.0,0.00018706,2]
[316378887,1709458232800,-297.0,0.00019123,2]
[316378889,1709458232809,-155.00310006,0.00019123,2]
[316378891,1709458232819,-428.72125377,0.00019124,2]
[316378893,1709458232829,-184.04369442,0.00019125,2]
[316378895,1709458232838,-2595.08936365,0.00019126,2]
[316378898,1709458232848,-1099.26560813,0.00020545,2]
[316378900,1709458232857,-3099.55390351,0.00020546,2]
[316378904,1709458232872,-54935.11471084,0.00020546,2]
[316378907,1709458232881,-224.45997514,0.00020547,2]
[316378909,1709458232891,-500.0,0.00020547,2]
[316378911,1709458232900,-500.0,0.00020547,2]
[316378913,1709458232909,-500.0,0.00020547,2]
[316378915,1709458232918,-500.0,0.00020547,2]
[316378917,1709458232927,-500.0,0.00020547,2]
[316378919,1709458232936,-500.0,0.00020547,2]
[316378921,1709458232945,-500.0,0.00020547,2]
[316378923,1709458232955,-630.81,0.00020547,2]
[316378925,1709458232964,-500.0,0.00020547,2]
[316378927,1709458232977,-500.0,0.00020547,2]
[316378928,1709458232987,-500.0,0.00020547,2]
[316378929,1709458232996,-500.0,0.00020547,2]
[316378930,1709458233006,-500.0,0.00020547,2]
[316378931,1709458233015,-500.0,0.00020547,2]
[316378933,1709458233024,-500.0,0.00020547,2]
[316378935,1709458233034,-500.0,0.00020547,2]
[316378937,1709458233044,-501.11108221,0.00020547,2]
[316378939,1709458233054,-403.17221712,0.00020547,2]
[316378941,1709458233064,-500.0,0.00020715,2]
[316378943,1709458233074,-500.0,0.00020716,2]
[316378945,1709458233084,-500.0,0.00020716,2]
[316378947,1709458233093,-500.0,0.00020716,2]
[316378949,1709458233102,-500.0,0.00020716,2]
[316378951,1709458233111,-531.36,0.00020717,2]
[316378953,1709458233120,-498.507337,0.00020717,2]
[316378955,1709458233129,-500.0,0.00020853,2]
[316378957,1709458233139,-488.61,0.00020853,2]
[316378959,1709458233148,-500.0,0.00020853,2]
[316378961,1709458233158,-500.0,0.00020853,2]
[316378963,1709458233167,-159.21845801,0.0002255,2]
[316378965,1709458233177,-499.34549476,0.0002255,2]
[316378967,1709458233186,-264.88537788,0.0002255,2]
[316378969,1709458233195,-855.74,0.00022889,3]
[316378971,1709458233204,-500.0,0.00022897,2]
[316378973,1709458233214,-500.0,0.00022897,2]
[316378975,1709458233223,-500.0,0.00022897,2]
[316378977,1709458233232,-329.55956081,0.00022897,2]
[316378979,1709458233241,-500.0,0.00022897,2]
[316378981,1709458233251,-500.0,0.00022897,2]
[316378983,1709458233260,-500.15754696,0.00022897,2]
[316378985,1709458233269,-500.0,0.00022897,2]
[316378987,1709458233278,-500.0,0.00022897,2]
[316378989,1709458233288,-500.0,0.00022897,2]
[316378991,1709458233297,-500.0,0.00022897,2]
[316378993,1709458233307,-500.0,0.00022897,2]
[316378995,1709458233316,-500.52889066,0.00022897,2]
[316378997,1709458233325,-1638.03,0.00022897,2]
[316378999,1709458233335,-500.0,0.00022897,2]
[316379001,1709458233344,-500.0,0.00022897,2]
[316379003,1709458233353,-500.0,0.00022897,2]
[316379005,1709458233362,-500.83873021,0.00022897,2]
[316379007,1709458233373,-389.31124775,0.00022897,2]
[316379009,1709458233382,-500.88849846,0.00022897,2]
[316379011,1709458233390,-569.68,0.00022898,2]
[316379013,1709458233399,-14659.26918931,0.00022899,2]
[316379015,1709458233408,-4683.05987458,0.00022911,5]
[316379017,1709458233417,-2689.86630818,0.00022911,5]
[316379019,1709458233426,-715.2725921,0.00022914,5]
[316379021,1709458233434,-553.01,0.00022994,2]
[316379023,1709458233443,-500.0,0.00022994,2]
[316379025,1709458233452,-500.0,0.00022994,2]
[316379027,1709458233462,-161.35755089,0.00022994,2]
[316379822,1709458244745,-304.69046803,0.00022994,2]
[316379824,1709458244757,-1171.98198108,0.00022994,2]
[316379826,1709458244767,-362.77,0.00022994,2]
[316379828,1709458244776,-500.0,0.00022994,2]
[316379830,1709458244786,-304.7,0.00022997,2]
[316379832,1709458244795,-216.02801894,0.00022997,2]
[316379842,1709458244886,-283.97198106,0.00022997,2]
[316379844,1709458244895,-500.0,0.00022997,2]
[316379846,1709458244904,-155.0,0.00023,2]
[316379848,1709458244914,-1000.0,0.00023646,2]
[316379850,1709458244923,-3038.82854837,0.00023667,2]
[316379852,1709458244932,-1000.0,0.00023806,2]
[316379855,1709458244941,-190.55832872,0.00023822,2]
[316379857,1709458244950,-5000.0,0.0002392,5]
[316379859,1709458244959,-5000.0,0.00023922,5]
[316379862,1709458244968,-5000.0,0.00023922,5]
[316379864,1709458244980,-4152.871367,0.00023952,2]
[316379866,1709458244989,-470.36997369,0.0002399,5]
[316379868,1709458244998,-500.0,0.00023997,2]
[316379870,1709458245009,-500.0,0.00023997,2]
[316379872,1709458245019,-1638.03,0.00023997,2]
[316379874,1709458245028,-500.0,0.00023997,2]
[316379876,1709458245038,-155.34814154,0.00023998,2]
[316379878,1709458245048,-339.34349521,0.00023998,2]
[316379880,1709458245060,-6736.01280514,0.00023998,2]
[316379882,1709458245070,-243.48618632,0.00023998,2]
[316379884,1709458245080,-280.36541373,0.00023998,2]
[316379886,1709458245090,-641.28373393,0.00023998,2]
[316379889,1709458245117,-1932.00247589,0.00023998,2]
[316379891,1709458245126,-155.33403758,0.00023998,2]
[316379893,1709458245135,-155.63856023,0.00023998,2]
[316379895,1709458245144,-185.27271988,0.00023998,2]
[316379897,1709458245153,-155.51020624,0.00023998,2]
[316379899,1709458245163,-1590.67475247,0.00023998,2]
[316379901,1709458245172,-402.12562078,0.00023998,2]
[316379903,1709458245181,-191.84916503,0.00023998,2]
[316379905,1709458245190,-155.0558201,0.00023998,2]
[316379907,1709458245199,-180.12933052,0.00023998,2]
[316379909,1709458245208,-160.36276259,0.00023998,2]
[316379911,1709458245218,-623.38533298,0.00023998,2]
[316379913,1709458245227,-155.16455241,0.00023998,2]
[316379915,1709458245237,-1238.24029911,0.00023998,2]
[316379917,1709458245246,-285.98453077,0.00023998,2]
[316379919,1709458245256,-549.1608496,0.00023998,2]
[316379921,1709458245265,-235.33749404,0.00023998,2]
[316379923,1709458245274,-400.0,0.00023998,2]
[316379925,1709458245284,-354.37392672,0.00023998,2]
[316379927,1709458245293,-291.08493038,0.00023998,2]
[316379929,1709458245302,-557.44319736,0.00023998,2]
[316379931,1709458245312,-651.0577104,0.00023998,2]
[316379933,1709458245321,-156.31288912,0.00023998,2]
[316379935,1709458245330,-155.62037309,0.00023998,2]
[316379937,1709458245340,-13458.95655965,0.00023998,2]
[316379938,1709458245349,-1585.08772013,0.00023998,2]
[316379940,1709458245359,-4598.01407912,0.00023998,2]
[316379943,1709458245371,-3114.27452715,0.00023998,2]
[316380037,1709458246504,-23.39183357,0.00023998,2]
[316380038,1709458246514,-353.78534665,0.00023998,2]
[316380039,1709458246523,-342.43862379,0.00023998,2]
[316380042,1709458246532,-755.34766989,0.00023998,2]
[316380045,1709458246541,-1084.97146916,0.00023998,2]
[316380048,1709458246550,-157.63553584,0.00023998,2]
[316380051,1709458246559,-139.4712357,0.00023998,2]
[316383795,1709459083375,174.360157,0.00027671,120]
[316383847,1709459432123,-428.72125377,0.00018951,2]
[316383848,1709459432133,-184.5743335,0.00018952,2]
[316383849,1709459432142,-2595.08936365,0.00018953,2]
[316383850,1709459432151,-198.0,0.00018953,2]
[316383851,1709459432161,-300.0,0.00018959,2]
[316383852,1709459432170,-2227.9905199,0.0001896,2]
[316383853,1709459432183,-1035.0927724,0.0001896,2]
[316383895,1709459437933,-22300.4963962,0.0001896,2]
[316383896,1709459437945,-19677.0801585,0.0001896,2]
[316383897,1709459437956,-8211.64546242,0.0001896,2]
[316383928,1709459440925,-4582.36330493,0.0001896,2]
[316383930,1709459440934,-2052.58886187,0.00018961,2]
[316383933,1709459440946,-22257.3665113,0.00018961,2]
[316384299,1709459446091,-590.04462683,0.00018961,2]
[316384301,1709459446101,-489.03262039,0.00020547,2]
[316384318,1709459446238,-10.96737961,0.00020547,2]
[316384321,1709459446248,-500.0,0.00020547,2]
[316384323,1709459446258,-200.66687712,0.00020547,2]
[316384325,1709459446268,-514.49465312,0.00020547,2]
[316384327,1709459446278,-500.88979037,0.00020547,2]
[316384329,1709459446288,-501.26215366,0.00020547,2]
[316384330,1709459446298,-500.0,0.00020547,2]
[316384332,1709459446308,-315.24,0.00020547,2]
[316384334,1709459446318,-500.0,0.00020547,2]
[316384336,1709459446327,-257.0,0.00020547,2]
[316384339,1709459446338,-500.0,0.00020547,2]
[316384341,1709459446348,-500.0,0.00020547,2]
[316384343,1709459446358,-500.0,0.00020547,2]
[316384344,1709459446370,-187.87263088,0.0002255,2]